[Event "*** MasterClass Titled Tuesday Blitz"]
[Site "Chess.com"]
[Date "2017.12.12"]
[Round "10"]
[White "sandromareco"]
[Black "1stSecond"]
[Result "1-0"]
[WhiteElo "2641"]
[BlackElo "2487"]
[TimeControl "180+2"]
[EndTime "15:20:29 PST"]
[Termination "sandromareco won on time"]

1. Nf3 {[%clk 0:02:25.4]} 1... Nf6 {[%clk 0:02:56.5]} 2. g3 {[%clk 0:02:27.3]}
2... d5 {[%clk 0:02:48.8]} 3. Bg2 {[%clk 0:02:29.2]} 3... c6 {[%clk 0:02:49.6]}
4. O-O {[%clk 0:02:30.2]} 4... Bg4 {[%clk 0:02:51.2]} 5. d3 {[%clk 0:02:32.1]}
5... e6 {[%clk 0:02:52.5]} 6. Qe1 {[%clk 0:02:33]} 6... Nbd7 {[%clk 0:02:53.2]}
7. e4 {[%clk 0:02:34.1]} 7... Bc5 {[%clk 0:02:48.1]} 8. Nbd2 {[%clk 0:02:34]}
8... O-O {[%clk 0:02:48.5]} 9. h3 {[%clk 0:02:33.4]} 9... Bxf3 {[%clk
0:02:48.5]} 10. Nxf3 {[%clk 0:02:33.8]} 10... a5 {[%clk 0:02:49.6]} 11. e5
{[%clk 0:02:30.2]} 11... Ne8 {[%clk 0:02:50.3]} 12. Kh2 {[%clk 0:02:29.9]} 12...
a4 {[%clk 0:02:51.3]} 13. a3 {[%clk 0:02:28.7]} 13... Bb6 {[%clk 0:02:35.7]} 14.
Nh4 {[%clk 0:02:27]} 14... c5 {[%clk 0:02:28.3]} 15. c4 {[%clk 0:02:26.9]} 15...
Nc7 {[%clk 0:02:28]} 16. f4 {[%clk 0:02:27.7]} 16... Ba5 {[%clk 0:02:25.5]} 17.
Qe2 {[%clk 0:02:27.5]} 17... Nb6 {[%clk 0:02:22.5]} 18. f5 {[%clk 0:02:26.4]}
18... dxc4 {[%clk 0:02:20.1]} 19. dxc4 {[%clk 0:02:16.6]} 19... Qd4 {[%clk
0:02:19.2]} 20. Rf4 {[%clk 0:02:15.8]} 20... Qd7 {[%clk 0:02:18.4]} 21. f6
{[%clk 0:02:16.8]} 21... g6 {[%clk 0:02:18.8]} 22. Be3 {[%clk 0:02:10.7]} 22...
Rfd8 {[%clk 0:02:13.6]} 23. Bxc5 {[%clk 0:02:09.4]} 23... Qd2 {[%clk 0:02:14.6]}
24. Qf1 {[%clk 0:02:06.9]} 24... Ne8 {[%clk 0:02:05.1]} 25. Rf2 {[%clk
0:02:07.4]} 25... Qd3 {[%clk 0:01:57.3]} 26. Bxb7 {[%clk 0:02:02.1]} 26... Rab8
{[%clk 0:01:55.2]} 27. Qxd3 {[%clk 0:02:03]} 27... Rxd3 {[%clk 0:01:55.6]} 28.
Be4 {[%clk 0:02:04]} 28... Rb3 {[%clk 0:01:54.2]} 29. Rc1 {[%clk 0:02:01.5]}
29... Nd7 {[%clk 0:01:42.9]} 30. Bd4 {[%clk 0:02:02.3]} 30... Nc7 {[%clk
0:01:39.9]} 31. Bc2 {[%clk 0:01:56.1]} 31... Rxb2 {[%clk 0:01:39.4]} 32. Bxb2
{[%clk 0:01:56.3]} 32... Rxb2 {[%clk 0:01:41.3]} 33. Nf3 {[%clk 0:01:56.7]}
33... Na6 {[%clk 0:01:36.9]} 34. Kg2 {[%clk 0:01:55.9]} 34... Nac5 {[%clk
0:01:38.3]} 35. Rd1 {[%clk 0:01:51.1]} 35... Kf8 {[%clk 0:01:35]} 36. Bxa4
{[%clk 0:01:51.1]} 36... Rb7 {[%clk 0:01:03.1]} 37. Bb5 {[%clk 0:01:42.5]} 37...
h6 {[%clk 0:00:57.8]} 38. Rd6 {[%clk 0:01:39.7]} 38... g5 {[%clk 0:00:55.2]} 39.
Rf1 {[%clk 0:01:37.3]} 39... Kg8 {[%clk 0:00:53.5]} 40. Rfd1 {[%clk 0:01:37.9]}
40... Nf8 {[%clk 0:00:52.8]} 41. Nh2 {[%clk 0:01:34.5]} 41... Ng6 {[%clk
0:00:49.7]} 42. Ng4 {[%clk 0:01:35.2]} 42... h5 {[%clk 0:00:51.1]} 43. Rc6
{[%clk 0:01:23.8]} 43... Bb6 {[%clk 0:00:50.9]} 44. Rdd6 {[%clk 0:01:19.4]}
44... Ba7 {[%clk 0:00:36.1]} 45. Rd8+ {[%clk 0:01:19.2]} 45... Kh7 {[%clk
0:00:37.1]} 46. Rcc8 {[%clk 0:01:20.6]} 46... hxg4 {[%clk 0:00:37.1]} 47. hxg4
{[%clk 0:01:21.6]} 47... Nxe5 {[%clk 0:00:28.9]} 48. Rg8 {[%clk 0:01:21.4]}
48... Ng6 {[%clk 0:00:21.5]} 49. a4 {[%clk 0:01:19.2]} 49... Ne4 {[%clk
0:00:20.6]} 50. a5 {[%clk 0:01:03.2]} 50... Nxf6 {[%clk 0:00:21.7]} 51. Rgd8
{[%clk 0:00:59.4]} 51... Ne7 {[%clk 0:00:23]} 52. Ra8 {[%clk 0:00:57.4]} 52...
Rc7 {[%clk 0:00:18.3]} 53. a6 {[%clk 0:00:57.3]} 53... Kg7 {[%clk 0:00:19.4]}
54. Kf3 {[%clk 0:00:53.8]} 54... Bc5 {[%clk 0:00:20.5]} 55. Rab8 {[%clk
0:00:52.9]} 55... e5 {[%clk 0:00:21.7]} 56. Rb7 {[%clk 0:00:53]} 56... e4+
{[%clk 0:00:23.2]} 57. Ke2 {[%clk 0:00:54.4]} 57... Rc8 {[%clk 0:00:07.8]} 58.
Rxc8 {[%clk 0:00:52]} 58... Nxc8 {[%clk 0:00:09.7]} 59. Rc7 {[%clk 0:00:53.3]}
1-0

[Event "*** MasterClass Titled Tuesday Blitz"]
[Site "Chess.com"]
[Date "2017.12.12"]
[Round "10"]
[White "daro94"]
[Black "jcibarra"]
[Result "0-1"]
[WhiteElo "2664"]
[BlackElo "2723"]
[TimeControl "180+2"]
[EndTime "15:20:33 PST"]
[Termination "jcibarra won by resignation"]

1. d4 {[%clk 0:03:00.7]} 1... Nf6 {[%clk 0:03:01.1]} 2. Nf3 {[%clk 0:03:01.5]}
2... g6 {[%clk 0:03:01.8]} 3. c4 {[%clk 0:02:59.3]} 3... d6 {[%clk 0:03:03.2]}
4. Nc3 {[%clk 0:03:00.7]} 4... Bf5 {[%clk 0:03:04.6]} 5. g3 {[%clk 0:03:00]}
5... Ne4 {[%clk 0:03:05.6]} 6. Nd5 {[%clk 0:02:21.4]} 6... c6 {[%clk 0:03:06.3]}
7. Ne3 {[%clk 0:02:22.7]} 7... Qa5+ {[%clk 0:03:08]} 8. Nd2 {[%clk 0:02:24]}
8... Bg7 {[%clk 0:03:08.5]} 9. Nxf5 {[%clk 0:02:19.6]} 9... Qxf5 {[%clk
0:03:10.4]} 10. Nf3 {[%clk 0:02:00.1]} 10... Qa5+ {[%clk 0:03:11.4]} 11. Bd2
{[%clk 0:02:01.2]} 11... Nxd2 {[%clk 0:03:12.9]} 12. Qxd2 {[%clk 0:02:02.7]}
12... Qxd2+ {[%clk 0:03:14.5]} 13. Kxd2 {[%clk 0:02:04.6]} 13... c5 {[%clk
0:03:16.1]} 14. dxc5 {[%clk 0:01:42.4]} 14... dxc5 {[%clk 0:03:18]} 15. Bg2
{[%clk 0:01:36.6]} 15... Nc6 {[%clk 0:03:15.1]} 16. e3 {[%clk 0:01:37.8]} 16...
Bxb2 {[%clk 0:03:03.3]} 17. Rab1 {[%clk 0:01:38.4]} 17... Bf6 {[%clk 0:03:03.3]}
18. Ke2 {[%clk 0:01:34.5]} 18... O-O-O {[%clk 0:03:00.7]} 19. Nd2 {[%clk
0:01:33.7]} 19... Kc7 {[%clk 0:02:55.6]} 20. Ne4 {[%clk 0:01:05.9]} 20... b6
{[%clk 0:02:47.6]} 21. Rb5 {[%clk 0:01:05.1]} 21... Nb4 {[%clk 0:02:31.3]} 22.
a3 {[%clk 0:00:36.4]} 22... a6 {[%clk 0:02:22.3]} 23. Rxb4 {[%clk 0:00:36.9]}
23... cxb4 {[%clk 0:02:22.7]} 24. axb4 {[%clk 0:00:38.8]} 24... a5 {[%clk
0:02:19.8]} 25. Rb1 {[%clk 0:00:31.1]} 25... Rb8 {[%clk 0:01:38.6]} 26. Rb3
{[%clk 0:00:23.8]} 26... Be5 {[%clk 0:01:29.3]} 27. f4 {[%clk 0:00:20.7]} 27...
Bd6 {[%clk 0:01:23.2]} 28. Nc3 {[%clk 0:00:13.1]} 28... Bxb4 {[%clk 0:01:22.4]}
29. Nd5+ {[%clk 0:00:07.1]} 29... Kd6 {[%clk 0:01:23.9]} 30. Nxb4 {[%clk
0:00:07.4]} 30... axb4 {[%clk 0:01:25.8]} 31. Rxb4 {[%clk 0:00:09.3]} 31... Rhc8
{[%clk 0:01:25.6]} 32. Kd3 {[%clk 0:00:10]} 32... Rc5 {[%clk 0:01:25.9]} 33. Bd5
{[%clk 0:00:09.4]} 33... e6 {[%clk 0:01:25.6]} 34. Bf3 {[%clk 0:00:10.5]} 34...
Kc7 {[%clk 0:01:23.4]} 35. Kd4 {[%clk 0:00:08.7]} 35... Rd8+ {[%clk 0:01:24.4]}
36. Kc3 {[%clk 0:00:10.2]} 36... Ra5 {[%clk 0:01:22.5]} 37. Rb3 {[%clk
0:00:10.5]} 37... Ra2 {[%clk 0:01:17.8]} 38. h4 {[%clk 0:00:07.6]} 38... Rdd2
{[%clk 0:01:09.3]} 39. Be4 {[%clk 0:00:06.2]} 39... Re2 {[%clk 0:01:07.7]} 40.
Kd4 {[%clk 0:00:06.1]} 40... f6 {[%clk 0:01:01.1]} 41. g4 {[%clk 0:00:06.7]}
41... Rad2+ {[%clk 0:00:57.8]} 42. Bd3 {[%clk 0:00:07.6]} 42... Rb2 {[%clk
0:00:46.6]} 43. Ra3 {[%clk 0:00:08.4]} 43... Ra2 {[%clk 0:00:46.8]} 44. Rb3
{[%clk 0:00:09.6]} 44... Reb2 {[%clk 0:00:47]} 45. Rc3 {[%clk 0:00:11.1]} 45...
Kd6 {[%clk 0:00:37.6]} 46. g5 {[%clk 0:00:08.3]} 46... e5+ {[%clk 0:00:32.4]}
47. fxe5+ {[%clk 0:00:09]} 47... fxe5+ {[%clk 0:00:34.3]} 48. Ke4 {[%clk
0:00:10.9]} 48... Rh2 {[%clk 0:00:34.9]} 49. Bf1 {[%clk 0:00:05.6]} 49... Rxh4+
{[%clk 0:00:33.6]} 50. Kf3 {[%clk 0:00:07.1]} 50... Rh1 {[%clk 0:00:32]} 51.
Rd3+ {[%clk 0:00:06.6]} 51... Kc7 {[%clk 0:00:29.8]} 52. Rb3 {[%clk 0:00:02.3]}
52... Rxf1+ {[%clk 0:00:29.9]} 53. Ke4 {[%clk 0:00:04.2]} 53... Rf5 {[%clk
0:00:29.4]} 54. c5 {[%clk 0:00:05.6]} 54... bxc5 {[%clk 0:00:29.4]} 55. Rb5
{[%clk 0:00:07]} 55... Kc6 {[%clk 0:00:30]} 56. Rb8 {[%clk 0:00:08.7]} 56...
Ra4+ {[%clk 0:00:30.2]} 57. Kd3 {[%clk 0:00:09.6]} 57... e4+ {[%clk 0:00:31.7]}
58. Kc3 {[%clk 0:00:11.1]} 58... Rxg5 {[%clk 0:00:32.4]} 59. Rc8+ {[%clk
0:00:12.1]} 59... Kd7 {[%clk 0:00:33.5]} 60. Rh8 {[%clk 0:00:14]} 60... Ra3+
{[%clk 0:00:34.1]} 61. Kd2 {[%clk 0:00:15.1]} 61... Rd3+ {[%clk 0:00:34.8]} 62.
Ke2 {[%clk 0:00:16.3]} 62... Rg2+ {[%clk 0:00:36.4]} 63. Kf1 {[%clk 0:00:17.6]}
63... Rh2 {[%clk 0:00:38]} 64. Ke1 {[%clk 0:00:18.5]} 64... Rxe3+ {[%clk
0:00:38.8]} 65. Kd1 {[%clk 0:00:20]} 65... Ra3 {[%clk 0:00:39.9]} 0-1

[Event "*** MasterClass Titled Tuesday Blitz"]
[Site "Chess.com"]
[Date "2017.12.12"]
[Round "10"]
[White "Taron_Shagbazyan"]
[Black "DrVelja"]
[Result "0-1"]
[WhiteElo "2530"]
[BlackElo "2569"]
[TimeControl "180+2"]
[EndTime "15:20:37 PST"]
[Termination "DrVelja won by resignation"]

1. d4 {[%clk 0:03:01.9]} 1... Nf6 {[%clk 0:03:00.9]} 2. c4 {[%clk 0:03:03]} 2...
g6 {[%clk 0:03:02.4]} 3. Nc3 {[%clk 0:03:03.9]} 3... Bg7 {[%clk 0:03:03.9]} 4.
g3 {[%clk 0:03:05.3]} 4... d6 {[%clk 0:03:01.2]} 5. Bg2 {[%clk 0:03:06.5]} 5...
O-O {[%clk 0:03:02.5]} 6. e3 {[%clk 0:03:06.8]} 6... e5 {[%clk 0:03:02.4]} 7.
Nge2 {[%clk 0:03:08]} 7... Nbd7 {[%clk 0:02:56.4]} 8. O-O {[%clk 0:03:06.8]}
8... Qe7 {[%clk 0:02:52.1]} 9. b3 {[%clk 0:03:07.4]} 9... h5 {[%clk 0:02:47.1]}
10. Ba3 {[%clk 0:02:47.8]} 10... h4 {[%clk 0:02:43]} 11. Nb5 {[%clk 0:02:25]}
11... Qd8 {[%clk 0:02:30.8]} 12. c5 {[%clk 0:02:12]} 12... a6 {[%clk 0:02:08.5]}
13. Nbc3 {[%clk 0:02:04.7]} 13... dxc5 {[%clk 0:02:07.7]} 14. dxc5 {[%clk
0:02:04.9]} 14... Qe7 {[%clk 0:02:09]} 15. Qc1 {[%clk 0:01:44]} 15... c6 {[%clk
0:02:02.1]} 16. Na4 {[%clk 0:01:40.8]} 16... Qe6 {[%clk 0:01:58.7]} 17. Rd1
{[%clk 0:01:39.2]} 17... h3 {[%clk 0:01:46.3]} 18. Bh1 {[%clk 0:01:02.3]} 18...
e4 {[%clk 0:01:45.3]} 19. Qc2 {[%clk 0:00:34.5]} 19... Qg4 {[%clk 0:01:40.9]}
20. Nd4 {[%clk 0:00:21.3]} 20... Ne5 {[%clk 0:01:23.3]} 21. Nc3 {[%clk
0:00:22.4]} 21... Qh5 {[%clk 0:00:53.7]} 22. Nxe4 {[%clk 0:00:21.4]} 22... Bg4
{[%clk 0:00:51.9]} 23. f4 {[%clk 0:00:21.5]} 23... Nf3+ {[%clk 0:00:40.8]} 24.
Nxf3 {[%clk 0:00:21.7]} 24... Bxf3 {[%clk 0:00:42.3]} 25. Bxf3 {[%clk
0:00:19.6]} 25... Qxf3 {[%clk 0:00:41.9]} 26. Ng5 {[%clk 0:00:20.7]} 26... Qxe3+
{[%clk 0:00:42.3]} 27. Qf2 {[%clk 0:00:22]} 27... Qxf2+ {[%clk 0:00:42.9]} 28.
Kxf2 {[%clk 0:00:23.5]} 28... Ng4+ {[%clk 0:00:44.6]} 29. Kg1 {[%clk 0:00:22.2]}
29... Bxa1 {[%clk 0:00:45.2]} 30. Rxa1 {[%clk 0:00:23.2]} 30... Rad8 {[%clk
0:00:42.8]} 31. Nxh3 {[%clk 0:00:24.1]} 31... Rfe8 {[%clk 0:00:40.1]} 32. Bb4
{[%clk 0:00:22.1]} 32... Re2 {[%clk 0:00:33.4]} 33. Ng5 {[%clk 0:00:23.1]} 33...
f6 {[%clk 0:00:24.8]} 34. Nf3 {[%clk 0:00:20.7]} 34... Ne3 {[%clk 0:00:20.5]}
35. Re1 {[%clk 0:00:20]} 35... Rxe1+ {[%clk 0:00:21.4]} 36. Bxe1 {[%clk
0:00:21.5]} 36... Rd1 {[%clk 0:00:20.8]} 37. Kf2 {[%clk 0:00:23]} 37... Nd5
{[%clk 0:00:21.2]} 38. Ke2 {[%clk 0:00:24.2]} 38... Ra1 {[%clk 0:00:22.2]} 39.
a4 {[%clk 0:00:25.8]} 39... Rb1 {[%clk 0:00:23]} 40. b4 {[%clk 0:00:26.8]} 40...
Nxb4 {[%clk 0:00:21.9]} 41. Nd4 {[%clk 0:00:28.3]} 41... Kf7 {[%clk 0:00:21.3]}
42. h4 {[%clk 0:00:28.8]} 42... Nd5 {[%clk 0:00:22.4]} 43. Bd2 {[%clk
0:00:29.2]} 43... Rb2 {[%clk 0:00:21.5]} 44. a5 {[%clk 0:00:29.3]} 44... Nc3+
{[%clk 0:00:21.8]} 45. Kd3 {[%clk 0:00:30.6]} 45... Na4 {[%clk 0:00:19.6]} 46.
Bc1 {[%clk 0:00:29.1]} 46... Nxc5+ {[%clk 0:00:19]} 47. Kc4 {[%clk 0:00:28.7]}
47... Rb1 {[%clk 0:00:19.4]} 48. Be3 {[%clk 0:00:26.9]} 48... Ne4 {[%clk
0:00:19.9]} 49. g4 {[%clk 0:00:28.1]} 49... Rh1 {[%clk 0:00:15.5]} 50. Kd3
{[%clk 0:00:29.4]} 50... Nc5+ {[%clk 0:00:15.2]} 51. Kc4 {[%clk 0:00:30.5]}
51... Ne6 {[%clk 0:00:16.7]} 52. h5 {[%clk 0:00:20.9]} 52... Nxd4 {[%clk
0:00:14]} 53. hxg6+ {[%clk 0:00:21.2]} 53... Kxg6 {[%clk 0:00:15.3]} 54. Bxd4
{[%clk 0:00:23.1]} 54... Rh4 {[%clk 0:00:16.1]} 55. f5+ {[%clk 0:00:22.8]} 55...
Kf7 {[%clk 0:00:16.5]} 56. Kc5 {[%clk 0:00:24]} 56... Rxg4 {[%clk 0:00:17.5]}
57. Be3 {[%clk 0:00:25.6]} 57... Re4 {[%clk 0:00:18.3]} 58. Bd4 {[%clk
0:00:26.3]} 58... Rxd4 {[%clk 0:00:17.8]} 59. Kxd4 {[%clk 0:00:27.4]} 59... Ke7
{[%clk 0:00:19.4]} 60. Kc5 {[%clk 0:00:29.3]} 60... Kd7 {[%clk 0:00:20.8]} 61.
Kb6 {[%clk 0:00:30.6]} 61... Kc8 {[%clk 0:00:22.3]} 62. Ka7 {[%clk 0:00:31.5]}
62... Kc7 {[%clk 0:00:22.5]} 0-1

[Event "*** MasterClass Titled Tuesday Blitz"]
[Site "Chess.com"]
[Date "2017.12.12"]
[Round "10"]
[White "tteshan"]
[Black "nicegg"]
[Result "0-1"]
[WhiteElo "2014"]
[BlackElo "1990"]
[TimeControl "180+2"]
[EndTime "15:20:37 PST"]
[Termination "nicegg won by checkmate"]

1. e4 {[%clk 0:03:00.9]} 1... e5 {[%clk 0:03:01.1]} 2. Nf3 {[%clk 0:03:01.6]}
2... Nc6 {[%clk 0:03:02.3]} 3. Bb5 {[%clk 0:03:02.4]} 3... Nd4 {[%clk
0:03:03.2]} 4. Nxd4 {[%clk 0:03:02.5]} 4... exd4 {[%clk 0:03:04.4]} 5. O-O
{[%clk 0:03:03.5]} 5... Qh4 {[%clk 0:03:05.5]} 6. Qf3 {[%clk 0:03:02]} 6... Nh6
{[%clk 0:03:05.3]} 7. Qg3 {[%clk 0:03:02.2]} 7... Qxg3 {[%clk 0:03:04.4]} 8.
hxg3 {[%clk 0:03:02.7]} 8... Bc5 {[%clk 0:03:04]} 9. d3 {[%clk 0:03:03.8]} 9...
Ng4 {[%clk 0:03:02.2]} 10. Bf4 {[%clk 0:03:02.6]} 10... c6 {[%clk 0:02:33.4]}
11. Bc4 {[%clk 0:03:02.2]} 11... a5 {[%clk 0:02:33.6]} 12. a4 {[%clk 0:03:02.1]}
12... d6 {[%clk 0:02:33.1]} 13. Nd2 {[%clk 0:03:02]} 13... f6 {[%clk 0:02:30.6]}
14. Nb3 {[%clk 0:03:01.5]} 14... Ne5 {[%clk 0:02:26.7]} 15. Nxc5 {[%clk
0:02:57.2]} 15... dxc5 {[%clk 0:02:26.8]} 16. Ba2 {[%clk 0:02:50.4]} 16... Ke7
{[%clk 0:02:24.9]} 17. Bd2 {[%clk 0:02:50.3]} 17... Be6 {[%clk 0:02:21.5]} 18.
Bxe6 {[%clk 0:02:49.4]} 18... Kxe6 {[%clk 0:02:22.2]} 19. f4 {[%clk 0:02:51]}
19... Ng4 {[%clk 0:02:07]} 20. f5+ {[%clk 0:02:49.9]} 20... Kd7 {[%clk
0:02:05.5]} 21. Bf4 {[%clk 0:02:48.9]} 21... Ra6 {[%clk 0:01:55.8]} 22. Rfe1
{[%clk 0:02:37.6]} 22... Ne5 {[%clk 0:01:51.1]} 23. Kf1 {[%clk 0:02:35.6]} 23...
Rb6 {[%clk 0:01:49.1]} 24. b3 {[%clk 0:02:34.5]} 24... Ra6 {[%clk 0:01:47]} 25.
Ke2 {[%clk 0:02:34.7]} 25... b5 {[%clk 0:01:46.1]} 26. Kd2 {[%clk 0:02:33.6]}
26... c4 {[%clk 0:01:41.2]} 27. Bxe5 {[%clk 0:02:19.7]} 27... fxe5 {[%clk
0:01:41.4]} 28. bxc4 {[%clk 0:02:18.1]} 28... bxc4 {[%clk 0:01:42.4]} 29. dxc4
{[%clk 0:02:19.7]} 29... Rb6 {[%clk 0:01:38.9]} 30. Rab1 {[%clk 0:02:20]} 30...
Rhb8 {[%clk 0:01:39.4]} 31. Rxb6 {[%clk 0:02:10]} 31... Rxb6 {[%clk 0:01:40.3]}
32. Ra1 {[%clk 0:02:11.5]} 32... Rb4 {[%clk 0:01:37]} 33. Kd3 {[%clk 0:02:12.8]}
33... Kd6 {[%clk 0:01:38.1]} 34. g4 {[%clk 0:02:08.5]} 34... h6 {[%clk
0:01:38.7]} 35. Ra2 {[%clk 0:01:51]} 35... Kc5 {[%clk 0:01:36.8]} 36. c3 {[%clk
0:01:44.6]} 36... dxc3 {[%clk 0:01:25.3]} 37. Kxc3 {[%clk 0:01:45.3]} 37...
Rxc4+ {[%clk 0:01:26.2]} 38. Kd3 {[%clk 0:01:46.9]} 38... Rd4+ {[%clk 0:01:26]}
39. Ke3 {[%clk 0:01:46.7]} 39... Kb4 {[%clk 0:01:26]} 40. Rc2 {[%clk 0:01:35.1]}
40... c5 {[%clk 0:01:26.7]} 41. Rf2 {[%clk 0:01:33.7]} 41... c4 {[%clk
0:01:26.1]} 42. f6 {[%clk 0:01:30.8]} 42... gxf6 {[%clk 0:01:26.8]} 43. Rxf6
{[%clk 0:01:31.5]} 43... Kxa4 {[%clk 0:01:27.7]} 44. Rxh6 {[%clk 0:01:31.6]}
44... c3 {[%clk 0:01:26.1]} 45. Rc6 {[%clk 0:01:31.3]} 45... Kb3 {[%clk
0:01:26.6]} 46. g5 {[%clk 0:01:31.4]} 46... c2 {[%clk 0:01:24.8]} 47. g6 {[%clk
0:01:27.6]} 47... Rd7 {[%clk 0:00:59.9]} 48. Rb6+ {[%clk 0:01:21.5]} 48... Kc3
{[%clk 0:01:00.9]} 49. Rc6+ {[%clk 0:01:22.2]} 49... Kb2 {[%clk 0:01:02.1]} 50.
Rb6+ {[%clk 0:01:23.5]} 50... Kc1 {[%clk 0:01:03.3]} 51. Rc6 {[%clk 0:01:24.9]}
51... Kd1 {[%clk 0:01:03]} 52. g7 {[%clk 0:01:01.3]} 52... Rxg7 {[%clk
0:01:01.6]} 53. Rd6+ {[%clk 0:01:02.1]} 53... Kc1 {[%clk 0:01:02.2]} 54. Rd8
{[%clk 0:00:36.6]} 54... Rg3+ {[%clk 0:00:55.6]} 55. Kf2 {[%clk 0:00:36.4]}
55... Rc3 {[%clk 0:00:56.1]} 56. g4 {[%clk 0:00:33.8]} 56... Kb2 {[%clk
0:00:57]} 57. Rd2 {[%clk 0:00:29.8]} 57... Kb3 {[%clk 0:00:54.2]} 58. Rxc2
{[%clk 0:00:28.8]} 58... Rxc2+ {[%clk 0:00:55.3]} 59. Ke3 {[%clk 0:00:30.4]}
59... Rc6 {[%clk 0:00:55.3]} 60. Kd3 {[%clk 0:00:29.5]} 60... a4 {[%clk
0:00:56]} 61. g5 {[%clk 0:00:29.6]} 61... a3 {[%clk 0:00:56.8]} 62. g6 {[%clk
0:00:26.4]} 62... Rxg6 {[%clk 0:00:57.2]} 63. Ke3 {[%clk 0:00:23.8]} 63... Rd6
{[%clk 0:00:58]} 64. Kf3 {[%clk 0:00:24.3]} 64... a2 {[%clk 0:00:59.2]} 65. Kg4
{[%clk 0:00:25]} 65... a1=Q {[%clk 0:01:00.1]} 66. Kf5 {[%clk 0:00:26.4]} 66...
Qd4 {[%clk 0:01:00.2]} 67. Kg5 {[%clk 0:00:21.9]} 67... Qxe4 {[%clk 0:01:01.2]}
68. Kh5 {[%clk 0:00:22.8]} 68... Qg2 {[%clk 0:01:00.3]} 69. Kh4 {[%clk
0:00:22.6]} 69... Rh6# {[%clk 0:01:01.2]} 0-1

[Event "*** MasterClass Titled Tuesday Blitz"]
[Site "Chess.com"]
[Date "2017.12.12"]
[Round "10"]
[White "johannesh"]
[Black "GameOverBro"]
[Result "1/2-1/2"]
[WhiteElo "2322"]
[BlackElo "2253"]
[TimeControl "180+2"]
[EndTime "15:21:11 PST"]
[Termination "Game drawn - insufficient material"]

1. e4 {[%clk 0:03:01.7]} 1... d6 {[%clk 0:03:00.8]} 2. d4 {[%clk 0:03:02.1]}
2... Nf6 {[%clk 0:03:01.9]} 3. Nc3 {[%clk 0:03:03.5]} 3... e5 {[%clk 0:03:03]}
4. Nge2 {[%clk 0:03:01.4]} 4... g6 {[%clk 0:03:00.7]} 5. g3 {[%clk 0:03:02.2]}
5... Bg7 {[%clk 0:03:02.2]} 6. Bg2 {[%clk 0:03:03.7]} 6... O-O {[%clk
0:03:03.6]} 7. O-O {[%clk 0:03:05.2]} 7... c6 {[%clk 0:03:04.9]} 8. h3 {[%clk
0:03:06.5]} 8... b5 {[%clk 0:03:04.3]} 9. a3 {[%clk 0:03:05]} 9... Bb7 {[%clk
0:03:04.6]} 10. Be3 {[%clk 0:03:04.6]} 10... Qc7 {[%clk 0:02:48.4]} 11. Qd2
{[%clk 0:03:03.4]} 11... Rd8 {[%clk 0:02:42.1]} 12. Rad1 {[%clk 0:03:01.7]}
12... Nbd7 {[%clk 0:02:40.3]} 13. Bh6 {[%clk 0:03:00.8]} 13... Nb6 {[%clk
0:02:35.3]} 14. Bxg7 {[%clk 0:02:56.9]} 14... Kxg7 {[%clk 0:02:34.2]} 15. b3
{[%clk 0:02:58.2]} 15... a5 {[%clk 0:02:28.3]} 16. f4 {[%clk 0:02:43.3]} 16...
a4 {[%clk 0:02:24.4]} 17. fxe5 {[%clk 0:02:29]} 17... dxe5 {[%clk 0:02:22.8]}
18. Qg5 {[%clk 0:02:23.8]} 18... Qe7 {[%clk 0:02:08.7]} 19. dxe5 {[%clk
0:01:52.1]} 19... Nfd5 {[%clk 0:02:02.6]} 20. Qxe7 {[%clk 0:01:19.5]} 20... Nxe7
{[%clk 0:02:04.5]} 21. Rd6 {[%clk 0:01:16.7]} 21... axb3 {[%clk 0:01:56.7]} 22.
cxb3 {[%clk 0:01:14.6]} 22... Re8 {[%clk 0:01:57.1]} 23. Rdf6 {[%clk 0:00:58.3]}
23... Rf8 {[%clk 0:01:44.4]} 24. e6 {[%clk 0:00:35.5]} 24... fxe6 {[%clk
0:01:36.3]} 25. Rxf8 {[%clk 0:00:37.4]} 25... Rxf8 {[%clk 0:01:35.5]} 26. Rxf8
{[%clk 0:00:38.9]} 26... Kxf8 {[%clk 0:01:37.3]} 27. Nd4 {[%clk 0:00:38.4]}
27... e5 {[%clk 0:01:19.8]} 28. Ne6+ {[%clk 0:00:38.1]} 28... Kg8 {[%clk
0:01:20.7]} 29. Nc5 {[%clk 0:00:40]} 29... Bc8 {[%clk 0:01:21]} 30. a4 {[%clk
0:00:38.5]} 30... bxa4 {[%clk 0:01:18.9]} 31. bxa4 {[%clk 0:00:40.4]} 31... Nc4
{[%clk 0:01:18.5]} 32. Bf1 {[%clk 0:00:34.1]} 32... Na5 {[%clk 0:01:18.9]} 33.
Nd3 {[%clk 0:00:29]} 33... Kf7 {[%clk 0:01:05.8]} 34. Nxe5+ {[%clk 0:00:19.5]}
34... Ke6 {[%clk 0:01:07.1]} 35. Nf3 {[%clk 0:00:20.9]} 35... Kd6 {[%clk
0:01:05.4]} 36. e5+ {[%clk 0:00:16]} 36... Kc5 {[%clk 0:01:04]} 37. Ne4+ {[%clk
0:00:15.1]} 37... Kb4 {[%clk 0:01:02.1]} 38. Nf6 {[%clk 0:00:13.4]} 38... h6
{[%clk 0:00:59.9]} 39. Kf2 {[%clk 0:00:09.8]} 39... Kxa4 {[%clk 0:01:00]} 40.
Ke3 {[%clk 0:00:11.3]} 40... c5 {[%clk 0:00:59.7]} 41. Bd3 {[%clk 0:00:10.7]}
41... c4 {[%clk 0:00:59.2]} 42. Be4 {[%clk 0:00:11.4]} 42... Bxh3 {[%clk
0:00:57.1]} 43. Nd5 {[%clk 0:00:08.8]} 43... Nxd5+ {[%clk 0:00:50.3]} 44. Bxd5
{[%clk 0:00:10.7]} 44... Kb4 {[%clk 0:00:41.7]} 45. e6 {[%clk 0:00:11.5]} 45...
Kc5 {[%clk 0:00:42.7]} 46. e7 {[%clk 0:00:12.1]} 46... Bd7 {[%clk 0:00:43.4]}
47. Bf7 {[%clk 0:00:13.2]} 47... g5 {[%clk 0:00:44.5]} 48. e8=Q {[%clk
0:00:12.8]} 48... Bxe8 {[%clk 0:00:45.3]} 49. Bxe8 {[%clk 0:00:14.7]} 49... Nb7
{[%clk 0:00:41.8]} 50. Bg6 {[%clk 0:00:11.2]} 50... Nd6 {[%clk 0:00:42.7]} 51.
Bc2 {[%clk 0:00:12.1]} 51... Kd5 {[%clk 0:00:43.8]} 52. Nd2 {[%clk 0:00:12.2]}
52... Ke5 {[%clk 0:00:43.3]} 53. Nf3+ {[%clk 0:00:11.2]} 53... Kd5 {[%clk
0:00:43.6]} 54. g4 {[%clk 0:00:12.7]} 54... Ne8 {[%clk 0:00:32.2]} 55. Bf5
{[%clk 0:00:09.7]} 55... Nf6 {[%clk 0:00:33.5]} 56. Nd2 {[%clk 0:00:10.8]} 56...
h5 {[%clk 0:00:32.8]} 57. gxh5 {[%clk 0:00:11.9]} 57... Nxh5 {[%clk 0:00:33.7]}
58. Ne4 {[%clk 0:00:13.4]} 58... Ke5 {[%clk 0:00:30.6]} 59. Bg4 {[%clk
0:00:14.2]} 59... Nf4 {[%clk 0:00:22.2]} 60. Nxg5 {[%clk 0:00:15]} 60... Nd5+
{[%clk 0:00:23.2]} 61. Kd2 {[%clk 0:00:14.4]} 61... Kf4 {[%clk 0:00:24]} 62. Be6
{[%clk 0:00:15.9]} 62... c3+ {[%clk 0:00:23.5]} 63. Kd3 {[%clk 0:00:17.1]} 63...
Kxg5 {[%clk 0:00:23.2]} 64. Bxd5 {[%clk 0:00:17]} 64... c2 {[%clk 0:00:24.3]}
65. Kxc2 {[%clk 0:00:18.4]} 1/2-1/2